bitfinex-derivatives/quotes_BNBF0:USTF0_20250111
["timestamp","ask_amount","ask_price","bid_price","bid_amount"]
[1736568038665,0.28888375,692.32,690.6,0.28960324]
[1736568038963,0.26559324,692.31,690.6,0.28960324]
[1736568039361,0.28888375,692.32,690.6,0.28960324]
[1736568039567,0.2655942,692.31,690.6,0.28960324]
[1736568041470,0.265594,692.3,690.6,0.28960324]
[1736568041670,0.28888375,692.32,690.6,0.28960324]
[1736568041871,0.26559383,692.31,690.6,0.28960324]
[1736568044373,0.2655974,692.3,690.6,0.28960324]
[1736568044573,0.2655974,692.29,690.6,0.28960324]
[1736568044766,0.2655974,692.28,690.6,0.28960324]
[1736568044968,0.2655974,692.27,690.6,0.28960324]
[1736568045272,0.2655974,692.26,690.6,0.28960324]
[1736568045473,0.2655974,692.25,690.6,0.28960324]
[1736568045666,0.28888375,692.32,690.6,0.28960324]
[1736568045871,0.26559677,692.31,690.6,0.28960324]
[1736568046873,0.28888375,692.32,690.6,0.28960324]
[1736568047073,0.26559682,692.31,690.6,0.28960324]
[1736568047780,0.26559674,692.3,690.6,0.28960324]
[1736568048077,0.26559674,692.29,690.6,0.28960324]
[1736568048276,0.28888375,692.32,690.6,0.28960324]
[1736568048479,0.26559688,692.31,690.6,0.28960324]
[1736568049575,0.26559688,692.31,690.61,1.2934836]
[1736568049774,0.28888375,692.32,690.61,1.2934836]
[1736568049972,0.26558848,692.31,690.61,1.2934836]
[1736568050174,0.26558848,692.31,690.63,0.28959066]
[1736568050376,1.07772684,692.3,690.63,1.58307426]
[1736568050577,0.26558848,692.29,690.63,1.58307426]
[1736568051178,1.07772684,692.28,690.64,1.2934836]
[1736568051380,0.26558848,692.27,690.66,0.28957808]
[1736568052273,1.07772684,692.24,690.67,1.2934836]
[1736568052477,1.07772684,692.24,690.69,0.2895655]
[1736568053081,1.07772684,692.24,690.7,1.2934836]
[1736568053281,1.07772684,692.24,690.71,0.28955712]
[1736568054181,1.07772684,692.18,690.71,0.28955712]
[1736568055182,1.07772684,692.17,690.71,0.28955712]
[1736568056081,0.28888375,692.32,690.71,0.28955712]
[1736568056082,1.07772684,692.16,690.71,0.28955712]
[1736568057182,1.07772684,692.16,690.76,1.2934836]
[1736568057382,1.07772684,692.16,690.77,0.28953197]
[1736568057881,1.07772684,692.13,690.78,1.2934836]
[1736568058880,1.07772684,692.12,690.78,1.2934836]
[1736568059582,1.07772684,692.12,690.79,0.28952358]
[1736568059980,1.07772684,692.1,690.79,0.28952358]
[1736568060978,1.07772684,692.09,690.79,1.58300718]
[1736568061683,1.07772684,692.09,690.8,1.2934836]
[1736568061986,1.07772684,692.09,690.81,0.2895152]
[1736568062878,1.07772684,692.07,690.81,0.2895152]
[1736568063684,1.07772684,692.08,690.82,1.2934836]
[1736568065283,1.07772684,692.04,690.81,0.2895152]
[1736568067387,1.07772684,692.15,690.81,0.2895152]
[1736568069491,1.07772684,692.16,690.81,0.2895152]
[1736568071491,1.07772684,692.22,690.81,0.2895152]
[1736568073692,0.28888375,692.32,690.81,0.2895152]
[1736568073693,1.36661059,692.32,690.81,0.2895152]
[1736568074694,1.07772684,692.31,690.81,0.2895152]
[1736568075894,0.28888375,692.32,690.81,0.2895152]
[1736568075895,1.07772684,692.25,690.81,0.2895152]
[1736568077093,1.07772684,692.24,690.81,0.2895152]
[1736568078195,1.07772684,692.26,690.81,0.2895152]
[1736568079197,1.07772684,692.22,690.81,0.2895152]
[1736568080094,1.07772684,692.23,690.81,0.2895152]
[1736568081100,1.07772684,692.25,690.81,0.2895152]
[1736568081895,1.07772684,692.23,690.81,0.2895152]
[1736568082698,1.07772684,692.27,690.81,0.2895152]
[1736568083799,1.07772684,692.19,690.81,0.2895152]
[1736568087601,0.28888375,692.32,690.81,0.2895152]
[1736568087602,1.07772684,692.23,690.81,0.2895152]
[1736568088399,1.07772684,692.24,690.81,0.2895152]
[1736568089602,1.07772684,692.23,690.81,0.2895152]
[1736568090402,0.28888375,692.32,690.81,0.2895152]
[1736568090403,1.07772684,692.21,690.81,0.2895152]
[1736568091401,1.07772684,692.22,690.81,0.2895152]
[1736568092302,1.07772684,692.23,690.81,0.2895152]
[1736568093402,0.28888375,692.32,690.81,0.2895152]
[1736568093403,1.07772684,692.22,690.81,0.2895152]
[1736568094805,1.07772684,692.23,690.81,0.2895152]
[1736568095603,1.07772684,692.29,690.81,0.2895152]
[1736568096900,1.07772684,692.28,690.81,0.2895152]
[1736568097705,1.07772684,692.31,690.81,0.2895152]
[1736568098405,1.07772684,692.3,690.81,0.2895152]
[1736568099305,1.36661059,692.32,690.81,0.2895152]
[1736568100007,0.28888375,692.32,690.81,0.2895152]
[1736568101810,0.28888375,692.32,690.98,1.2934836]
[1736568102110,0.28888375,692.32,690.99,0.28943978]
[1736568105914,1.07772684,692.31,690.99,0.28943978]
[1736568107115,1.36661059,692.32,690.99,0.28943978]
[1736568109119,0.28888375,692.32,690.99,0.28943978]
[1736568150950,1.36661059,692.32,690.99,0.28943978]
[1736568153359,0.28888375,692.32,690.99,0.28943978]
[1736568158160,1.07772684,692.28,690.99,0.28943978]
[1736568159259,0.28888375,692.32,690.99,0.28943978]
[1736568160758,1.07772684,692.29,691.01,1.2934836]
[1736568160955,1.07772684,692.29,691.02,0.28942722]
[1736568165956,0.28888375,692.32,691.02,0.28942722]
[1736568179180,1.36661059,692.32,691.02,0.28942722]
[1736568180077,1.07772684,692.26,691.02,0.28942722]
[1736568181181,1.07772684,692.25,691.02,0.28942722]
[1736568182076,1.07772684,692.27,691.02,0.28942722]
[1736568183281,1.07772684,692.29,691.02,0.28942722]
[1736568184581,1.07772684,692.27,691.02,0.28942722]
[1736568185380,0.28888375,692.32,691.02,0.28942722]
[1736568199689,1.36661059,692.32,691.02,0.28942722]
[1736568200896,0.28888375,692.32,691.02,0.28942722]
[1736568201699,1.07772684,692.29,691.02,0.28942722]
[1736568202798,1.07772684,692.27,691.02,0.28942722]
[1736568203600,1.07772684,692.23,691.02,0.28942722]
[1736568204601,1.07772684,692.22,691.02,0.28942722]
[1736568205601,1.07772684,692.25,691.02,0.28942722]
[1736568206405,1.07772684,692.28,691.02,0.28942722]
[1736568207704,1.07772684,692.3,691.02,0.28942722]
[1736568208599,0.28888375,692.32,691.02,0.28942722]
[1736568219111,1.07772684,692.3,691.02,0.28942722]
[1736568219713,1.07772684,692.29,691.02,0.28942722]
[1736568220615,0.28888375,692.32,691.02,0.28942722]
[1736568224213,1.36661059,692.32,691.02,0.28942722]
[1736568225315,0.28888375,692.32,691.02,0.28942722]
[1736568225911,1.36661059,692.32,691.02,0.28942722]
[1736568228815,1.07772684,692.31,691.02,0.28942722]
[1736568231016,1.07772684,692.22,691.02,0.28942722]
[1736568231816,0.28888375,692.32,691.02,0.28942722]
[1736568231817,1.07772684,692.27,691.02,0.28942722]
[1736568233020,0.28888375,692.32,691.02,0.28942722]
[1736568233021,1.07772684,692.25,691.02,0.28942722]
[1736568233914,1.07772684,692.21,691.02,0.28942722]
[1736568234812,1.07772684,692.24,691.02,0.28942722]
[1736568237121,1.07772684,692.23,691.02,0.28942722]
[1736568240025,1.07772684,692.21,691.02,0.28942722]
[1736568240927,1.07772684,692.19,691.02,0.28942722]
[1736568241920,1.07772684,692.2,691.02,0.28942722]
[1736568244023,1.07772684,692.19,691.02,0.28942722]
[1736568245131,1.07772684,692.27,691.02,0.28942722]
[1736568246524,1.36661059,692.32,691.02,0.28942722]
[1736568247625,0.28888375,692.32,691.02,0.28942722]
[1736568285354,1.36661059,692.32,691.19,1.2934836]
[1736568286253,1.07772684,692.27,691.13,1.2934836]
[1736568288448,1.07772684,692.27,691.14,0.28937697]
[1736568289052,1.07772684,692.31,691.17,1.2934836]
[1736568289455,1.07772684,692.31,691.18,0.28936022]
[1736568289955,0.28888375,692.32,691.18,1.58284382]
[1736568290658,1.36661059,692.32,691.18,0.28936022]
[1736568292958,0.28888375,692.32,691.18,0.28936022]
[1736568293960,1.07772684,692.3,691.18,0.28936022]
[1736568295061,1.07772684,692.28,691.18,0.28936022]
[1736568296263,0.28888375,692.32,691.18,0.28936022]
[1736568296264,1.07772684,692.29,691.18,0.28936022]
[1736568298966,1.07772684,692.28,691.18,0.28936022]
[1736568300768,0.28888375,692.32,691.18,0.28936022]
[1736568304673,1.07772684,692.28,691.18,0.28936022]
[1736568305769,0.28888375,692.32,691.18,0.28936022]
[1736568310069,0.26558312,692.31,691.18,0.28936022]
[1736568310275,1.07772684,692.2,691.18,0.28936022]
[1736568311372,1.07772684,692.28,691.18,0.28936022]
[1736568312178,1.07772684,692.3,691.18,0.28936022]
[1736568313577,0.28888375,692.32,691.18,0.28936022]
[1736568313578,1.36661059,692.32,691.18,0.28936022]
[1736568314279,0.28888375,692.32,691.18,0.28936022]
[1736568320180,0.26558122,692.31,691.18,0.28936022]
[1736568321676,1.36661059,692.32,691.18,0.28936022]
[1736568321882,0.26558059,692.31,691.18,0.28936022]
[1736568323783,1.07772684,692.26,691.18,0.28936022]
[1736568324682,0.28888375,692.32,691.18,0.28936022]
[1736568324683,1.07772684,692.23,691.18,0.28936022]
[1736568325482,1.07772684,692.22,691.18,0.28936022]
[1736568327189,1.07772684,692.21,691.18,0.28936022]
[1736568328391,1.07772684,692.18,691.18,0.28936022]
[1736568329889,1.07772684,692.17,691.18,0.28936022]
[1736568331492,0.28888375,692.32,691.18,0.28936022]
[1736568331493,1.07772684,692.16,691.18,0.28936022]
[1736568332490,1.07772684,692.27,691.18,0.28936022]
[1736568334995,1.07772684,692.25,691.18,0.28936022]
[1736568337098,1.07772684,692.23,691.18,0.28936022]
[1736568337799,0.28888375,692.32,691.18,0.28936022]
[1736568348108,1.07772684,692.19,691.18,0.28936022]
[1736568349009,1.07772684,692.2,691.18,0.28936022]
[1736568349807,1.07772684,692.28,691.18,0.28936022]
[1736568350710,0.28888375,692.32,691.18,0.28936022]
[1736568350711,1.07772684,692.29,691.18,0.28936022]
[1736568352613,1.07772684,692.3,691.18,0.28936022]
[1736568354414,1.07772684,692.29,691.18,0.28936022]
[1736568356114,0.28888375,692.32,691.18,0.28936022]
[1736568356115,1.07772684,692.31,691.18,0.28936022]
[1736568357010,1.36661059,692.32,691.18,0.28936022]
[1736568357816,1.07772684,692.31,691.18,0.28936022]
[1736568358808,0.28888375,692.32,691.18,0.28936022]
[1736568358809,1.07772684,692.29,691.18,0.28936022]
[1736568359514,1.07772684,692.24,691.18,0.28936022]
[1736568361317,1.07772684,692.23,691.18,0.28936022]
[1736568363217,0.28888375,692.32,691.18,0.28936022]
[1736568363218,1.07772684,692.27,691.18,0.28936022]
[1736568364421,0.28888375,692.32,691.18,0.28936022]
[1736568366326,1.07772684,692.29,691.18,0.28936022]
[1736568367528,0.28888375,692.32,691.18,0.28936022]
[1736568370327,1.07772684,692.49,691.18,0.28936022]
[1736568371128,1.07772684,692.58,691.18,0.28936022]
[1736568372529,1.07772684,692.56,691.18,0.28936022]
[1736568373529,1.07772684,692.57,691.18,0.28936022]
[1736568374122,1.07772684,692.59,691.18,0.28936022]
[1736568374828,1.07772684,692.6,691.18,0.28936022]
[1736568376831,1.07772684,692.58,691.18,0.28936022]
[1736568380236,0.26546717,692.57,691.18,0.28936022]
[1736568380430,1.07772684,692.58,691.18,0.28936022]
[1736568381534,1.07772684,692.54,691.18,0.28936022]
[1736568382735,1.07772684,692.56,691.18,0.28936022]
[1736568383536,1.07772684,692.55,691.18,0.28936022]
[1736568384332,1.07772684,692.58,691.18,0.28936022]
[1736568385236,1.07772684,692.59,691.18,0.28936022]
[1736568385635,1.06991633,692.59,691.18,0.28936022]
[1736568385834,0.28868776,692.79,691.18,0.28936022]
[1736568386035,0.26544601,692.78,691.18,0.28936022]
[1736568386233,0.2886961,692.77,691.18,0.28936022]
[1736568386435,0.26544601,692.76,691.18,0.28936022]
[1736568386634,0.28870443,692.75,691.18,0.28936022]
[1736568386834,0.26544601,692.74,691.18,0.28936022]
[1736568387034,0.55415461,692.74,691.18,0.28936022]
[1736568387235,0.26544601,692.73,691.18,0.28936022]
[1736568391530,0.26543697,692.72,691.18,0.28936022]
[1736568391734,0.2887086,692.74,691.18,0.28936022]
[1736568391934,0.26543697,692.73,691.18,0.28936022]
[1736568394439,0.2887086,692.74,691.18,0.28936022]
[1736568394635,0.26543808,692.73,691.18,0.28936022]
[1736568395438,0.2887086,692.74,691.18,0.28936022]
[1736568395634,0.26543694,692.73,691.18,0.28936022]
[1736568395837,0.2887086,692.74,691.18,0.28936022]
[1736568397736,0.26543871,692.73,691.18,0.28936022]
[1736568398138,0.2887086,692.74,691.18,0.28936022]
[1736568403545,0.2887086,692.74,691.18,0.27998392]
[1736568417962,0.2887086,692.74,691.24,1.2934836]
[1736568418163,0.2887086,692.74,691.25,0.28933092]
[1736568426365,0.2887086,692.74,691.33,1.2934836]
[1736568426561,0.2887086,692.74,691.34,0.28929325]
[1736568427370,0.2887086,692.74,691.35,1.2934836]
[1736568427671,0.2887086,692.74,691.36,0.28928488]
[1736568461390,0.2887086,692.74,691.38,1.2934836]
[1736568461591,0.2887086,692.74,691.39,0.28927233]
[1736568465400,0.2887086,692.74,691.4,1.2934836]
[1736568466491,0.2887086,692.74,691.41,0.28926396]
[1736568481614,0.2887086,692.74,691.44,1.2934836]
[1736568481813,0.2887086,692.74,691.45,0.28924723]
[1736568498031,0.2887086,692.74,691.47,1.2934836]
[1736568499436,0.2887086,692.74,691.48,0.28923468]
[1736568500345,0.2887086,692.74,691.48,1.58271828]
[1736568502344,0.2887086,692.74,691.48,0.28923468]
[1736568528876,1.08215295,692.7,691.48,0.28923468]
[1736568529674,1.08215295,692.68,691.48,0.28923468]
[1736568530478,1.08215295,692.69,691.48,0.28923468]
[1736568531177,1.08215295,692.72,691.48,0.28923468]
[1736568532078,1.08215295,692.71,691.48,0.28923468]
[1736568533072,0.2887086,692.74,691.48,0.28923468]
[1736568539183,1.08215295,692.73,691.48,0.28923468]
[1736568540183,0.2887086,692.74,691.48,0.28923468]
[1736568547796,1.08215295,692.73,691.48,0.28923468]
[1736568548489,0.2887086,692.74,691.48,0.28923468]
[1736568549391,1.08215295,692.7,691.48,0.28923468]
[1736568551289,1.08215295,692.68,691.48,0.28923468]
[1736568551892,0.2887086,692.74,691.48,0.28923468]
[1736568568405,1.37086155,692.74,691.48,0.28923468]
[1736568569802,1.08215295,692.54,691.48,0.28923468]
[1736568571206,1.08215295,692.62,691.48,0.28923468]
[1736568572408,0.2887086,692.74,691.48,0.28923468]
[1736568572409,1.08215295,692.61,691.48,0.28923468]
[1736568573609,1.08215295,692.63,691.48,0.28923468]
[1736568575007,1.08215295,692.64,691.48,0.28923468]
[1736568576912,1.08215295,692.65,691.48,0.28923468]
[1736568578212,1.08215295,692.6,691.48,0.28923468]
[1736568580115,1.08215295,692.57,691.48,0.28923468]
[1736568581018,1.08215295,692.53,691.48,0.28923468]
[1736568581814,1.08215295,692.54,691.48,0.28923468]
[1736568585621,1.08215295,692.6,691.48,0.28923468]
[1736568588424,1.08215295,692.62,691.48,0.28923468]
[1736568589424,1.08215295,692.63,691.48,0.28923468]
[1736568590019,1.08215295,692.65,691.48,0.28923468]
[1736568591126,1.08215295,692.64,691.48,0.28923468]
[1736568591922,1.08215295,692.65,691.48,0.28923468]
[1736568592626,1.08215295,692.64,691.48,0.28923468]
[1736568594333,0.2887086,692.74,691.48,0.28923468]
[1736568594334,1.08215295,692.6,691.48,0.28923468]
[1736568595127,1.08215295,692.59,691.48,0.28923468]
[1736568596133,1.08215295,692.58,691.48,0.28923468]
[1736568597034,0.2887086,692.74,691.48,0.28923468]
[1736568597035,1.08215295,692.56,691.48,0.28923468]
[1736568597837,1.08215295,692.55,691.48,0.28923468]
[1736568598637,1.08215295,692.51,691.48,0.28923468]
[1736568599631,1.08215295,692.46,691.48,0.28923468]
[1736568600632,1.08215295,692.43,691.48,0.28923468]
[1736568601636,1.08215295,692.51,691.48,0.28923468]
[1736568602337,1.08215295,692.48,691.48,0.28923468]
[1736568603541,1.08215295,692.47,691.48,0.28923468]
[1736568604439,1.08215295,692.43,691.48,0.28923468]
[1736568605232,1.08215295,692.44,691.48,0.28923468]
[1736568607738,1.08215295,692.4,691.48,0.28923468]
[1736568608641,1.08215295,692.37,691.48,0.28923468]
[1736568609639,1.08215295,692.36,691.48,0.28923468]
[1736568610436,1.08215295,692.37,691.48,0.28923468]
[1736568611535,1.08215295,692.39,691.48,0.28923468]
[1736568615342,1.08215295,692.42,691.48,0.28923468]
[1736568616442,1.08215295,692.41,691.48,0.28923468]
[1736568617640,0.89598808,692.73,691.48,0.28923468]
[1736568617641,1.08215295,692.42,691.48,0.28923468]
[1736568618247,1.08215295,692.38,691.48,0.28923468]
[1736568619049,1.08215295,692.39,691.48,0.28923468]
[1736568621443,1.08215295,692.4,691.48,0.28923468]
[1736568622449,1.08215295,692.46,691.48,0.28923468]
[1736568623445,1.08215295,692.48,691.48,0.28923468]
[1736568624550,1.08215295,692.47,691.48,0.28923468]
[1736568625150,1.08215295,692.45,691.48,0.28923468]
[1736568631157,1.08215295,692.4,691.48,0.28923468]
[1736568632556,1.08215295,692.42,691.48,0.28923468]
[1736568633356,0.89598808,692.73,691.48,0.28923468]
[1736568633357,1.08215295,692.4,691.48,0.28923468]
[1736568635563,1.08215295,692.46,691.48,0.28923468]
[1736568636768,1.08215295,692.47,691.48,0.28923468]
[1736568637668,1.08215295,692.49,691.48,0.28923468]
[1736568638468,0.2887086,692.74,691.48,0.28923468]
[1736568638469,1.08215295,692.54,691.48,0.28923468]
[1736568640567,1.08215295,692.55,691.48,0.28923468]
[1736568643271,1.08215295,692.6,691.48,0.28923468]
[1736568644269,1.08215295,692.59,691.48,0.28923468]
[1736568645172,1.08215295,692.6,691.48,0.28923468]
[1736568645866,0.2887086,692.74,691.48,0.28923468]
[1736568645867,1.08215295,692.62,691.48,0.28923468]
[1736568646669,1.08215295,692.58,691.48,0.28923468]
[1736568647567,0.2887086,692.74,691.48,0.28923468]
[1736568647568,1.08215295,692.59,691.48,0.28923468]
[1736568650176,1.08215295,692.7,691.48,0.28923468]
[1736568652177,0.2887086,692.74,691.48,0.28923468]
[1736568669097,1.08215295,692.7,691.48,0.28923468]
[1736568671397,1.08215295,692.67,691.48,0.28923468]
[1736568672494,1.08215295,692.66,691.48,0.28923468]
[1736568673192,1.08215295,692.65,691.48,0.28923468]
[1736568675599,1.08215295,692.69,691.48,0.28923468]
[1736568676496,1.08215295,692.68,691.48,0.28923468]
[1736568677597,1.08215295,692.67,691.48,0.28923468]
[1736568678701,1.08215295,692.66,691.48,0.28923468]
[1736568680202,1.08215295,692.65,691.48,0.28923468]
[1736568682900,1.08215295,692.69,691.48,0.28923468]
[1736568684007,1.08215295,692.67,691.48,0.28923468]
[1736568685105,1.08215295,692.7,691.48,0.28923468]
[1736568686204,1.08215295,692.71,691.48,0.28923468]
[1736568686810,0.2887086,692.74,691.48,0.28923468]
[1736568694817,1.37086155,692.74,691.48,0.28923468]
[1736568697013,1.08215295,692.66,691.48,0.28923468]
[1736568697911,1.08215295,692.65,691.48,0.28923468]
[1736568698819,1.08215295,692.6,691.48,0.28923468]
[1736568700020,1.08215295,692.59,691.48,0.28923468]
[1736568700816,1.08215295,692.58,691.48,0.28923468]
[1736568702722,1.08215295,692.57,691.48,0.28923468]
[1736568703625,1.08215295,692.56,691.48,0.28923468]
[1736568704729,1.08215295,692.55,691.48,0.28923468]
[1736568705932,1.08215295,692.58,691.48,0.28923468]
[1736568709032,1.08215295,692.57,691.48,0.28923468]
[1736568709633,1.08215295,692.6,691.48,0.28923468]
[1736568713027,1.08215295,692.64,691.48,0.28923468]
[1736568714929,1.08215295,692.65,691.48,0.28923468]
[1736568716038,1.08215295,692.64,691.48,0.28923468]
[1736568718035,1.08215295,692.63,691.48,0.28923468]
[1736568720037,1.08215295,692.59,691.48,0.28923468]
[1736568720839,1.08215295,692.58,691.48,0.28923468]
[1736568721942,1.08215295,692.52,691.48,0.28923468]
[1736568724742,1.08215295,692.51,691.48,0.28923468]
[1736568729349,1.08215295,692.55,691.48,0.28923468]
[1736568732349,1.08215295,692.54,691.48,0.28923468]
[1736568733145,1.08215295,692.55,691.48,0.28923468]
[1736568734849,1.08215295,692.54,691.48,0.28923468]
[1736568735651,1.08215295,692.49,691.48,0.28923468]
[1736568736345,1.08215295,692.46,691.48,0.28923468]
[1736568737949,1.07322056,692.64,691.48,0.28923468]
[1736568737950,1.08215295,692.47,691.48,0.28923468]
[1736568738743,1.08215295,692.48,691.48,0.28923468]
[1736568739645,1.08215295,692.57,691.48,0.28923468]
[1736568740450,1.08215295,692.58,691.48,0.28923468]
[1736568741248,1.08215295,692.6,691.48,0.28923468]
[1736568743754,1.08215295,692.62,691.48,0.28923468]
[1736568745951,1.08215295,692.64,691.48,0.28923468]
[1736568747452,1.08215295,692.65,691.48,0.28923468]
[1736568748354,1.08215295,692.66,691.48,0.28923468]
[1736568749155,1.08215295,692.65,691.48,0.28923468]
[1736568750154,0.2887086,692.74,691.48,0.28923468]
[1736568750155,1.08215295,692.61,691.48,0.28923468]
[1736568751950,1.08215295,692.62,691.48,0.28923468]
[1736568752855,1.08215295,692.61,691.48,0.28923468]
[1736568756759,1.08215295,692.55,691.48,0.28923468]
[1736568759355,1.07322056,692.73,691.48,0.28923468]
[1736568759356,1.08215295,692.52,691.48,0.28923468]
[1736568760556,1.08215295,692.56,691.48,0.28923468]
[1736568761363,1.08215295,692.59,691.48,0.28923468]
[1736568762363,1.08215295,692.6,691.48,0.28923468]
[1736568764468,1.08215295,692.59,691.48,0.28923468]
[1736568765565,1.08215295,692.63,691.48,0.28923468]
[1736568768165,1.08215295,692.62,691.48,0.28923468]
[1736568768864,1.08215295,692.63,691.48,0.28923468]
[1736568769760,1.08215295,692.6,691.48,0.28923468]
[1736568771760,0.2887086,692.74,691.48,0.28923468]
[1736568771761,1.08215295,692.54,691.48,0.28923468]
[1736568774165,1.08215295,692.49,691.48,0.28923468]
[1736568775161,1.08215295,692.5,691.48,0.28923468]
[1736568777063,1.08215295,692.52,691.48,0.28923468]
[1736568778969,1.08215295,692.54,691.48,0.28923468]
[1736568781167,1.08215295,692.59,691.48,0.28923468]
[1736568784370,1.08215295,692.6,691.48,0.28923468]
[1736568785370,1.08215295,692.54,691.48,0.28923468]
[1736568786069,0.2887086,692.74,691.48,0.28923468]
[1736568786374,0.26542662,692.73,691.48,0.28923468]
[1736568786574,0.26542851,692.72,691.48,0.28923468]
[1736568786769,0.2887086,692.74,691.48,0.28923468]
[1736568786770,0.26542851,692.71,691.48,0.28923468]
[1736568786977,0.26542851,692.7,691.48,0.28923468]
[1736568787177,1.08145292,692.55,691.48,0.28923468]
[1736568788079,1.08145292,692.54,691.48,0.28923468]
[1736568789580,1.08145292,692.51,691.48,0.28923468]
[1736568790476,1.08145292,692.5,691.48,0.28923468]
[1736568792677,1.08145292,692.48,691.48,0.28923468]
[1736568793685,1.08145292,692.47,691.48,0.28923468]
[1736568795386,1.08145292,692.49,691.48,0.28923468]
[1736568797686,1.08145292,692.47,691.48,0.28923468]
[1736568799389,1.08145292,692.48,691.48,0.28923468]
[1736568800291,1.08145292,692.47,691.48,0.28923468]
[1736568801584,1.08145292,692.67,691.48,0.28923468]
[1736568801585,1.08145292,692.48,691.48,0.28923468]
[1736568802686,1.08145292,692.46,691.48,0.28923468]
[1736568803784,1.08145292,692.51,691.48,0.28923468]
[1736568804985,0.2887086,692.74,691.48,0.28923468]
[1736568804986,1.08145292,692.49,691.48,0.28923468]
[1736568805889,1.08145292,692.5,691.48,0.28923468]
[1736568806590,1.08145292,692.49,691.48,0.28923468]
[1736568808487,1.08145292,692.51,691.48,0.28923468]
[1736568809292,1.08145292,692.62,691.48,0.28923468]
[1736568809690,1.37021154,692.62,691.48,0.28923468]
[1736568810494,0.28875862,692.62,691.48,0.28923468]
[1736568811892,1.08145292,692.58,691.48,0.28923468]
[1736568812795,1.08145292,692.59,691.48,0.28923468]
[1736568814898,0.26549728,692.58,691.48,0.28923468]
[1736568815097,0.28877947,692.57,690.43,3.24014045]
[1736568815293,0.26549728,692.56,690.53,0.2896326]
[1736568815493,0.28877947,692.57,690.53,0.2896326]
[1736568815797,0.26551128,692.56,690.53,0.2896326]
[1736568815993,1.08145292,692.35,690.84,1.29236723]
[1736568816701,1.08145292,692.35,690.86,0.28949425]
[1736568818601,0.28877947,692.57,690.86,0.28949425]
[1736568818602,1.08145292,692.41,690.86,1.58186148]
[1736568819795,1.08145292,692.42,690.86,0.28949425]
[1736568821399,1.08145292,692.4,690.86,0.28949425]
[1736568822403,1.08145292,692.43,690.86,0.28949425]
[1736568823002,1.08145292,692.45,690.86,0.28949425]
[1736568823704,1.08145292,692.46,690.86,0.28949425]
[1736568824103,1.37027826,692.46,690.86,0.28949425]
[1736568824705,0.28882534,692.46,690.86,0.28949425]
[1736568830911,0.26555066,692.45,690.86,0.28949425]
[1736568831611,1.34700358,692.45,690.86,0.28949425]
[1736568831809,0.26555066,692.44,690.86,0.28949425]
[1736568832413,1.08145292,692.39,690.86,0.28949425]
[1736568833215,1.08145292,692.41,690.86,0.28949425]
[1736568833415,0.26555144,692.4,690.86,0.28949425]
[1736568834410,1.08145292,692.37,690.86,0.28949425]
[1736568835416,0.28882534,692.46,690.86,0.28949425]
[1736568835417,1.08145292,692.36,690.86,0.28949425]
[1736568836314,1.08145292,692.35,690.86,0.28949425]
[1736568837210,1.08145292,692.33,690.86,0.28949425]
[1736568838116,1.08145292,692.31,690.86,0.28949425]
[1736568839218,1.08145292,692.29,690.86,0.28949425]
[1736568840217,1.08145292,692.27,690.86,0.28949425]
[1736568841219,1.08145292,692.26,690.86,0.28949425]
[1736568842118,0.28882534,692.46,690.95,1.29236723]
[1736568842119,1.08145292,692.36,690.95,1.29236723]
[1736568842319,1.08145292,692.36,690.96,0.28945235]
[1736568843118,1.08145292,692.35,690.96,1.58181958]
[1736568844319,0.28882534,692.46,690.96,1.58181958]
[1736568844320,1.08145292,692.34,690.96,1.58181958]
[1736568845221,1.08145292,692.36,691.0,1.29236723]
[1736568845422,1.08145292,692.36,691.01,0.28943141]
[1736568846221,1.08145292,692.39,691.01,0.28943141]
[1736568847123,1.08145292,692.38,691.01,0.28943141]
[1736568848119,1.08145292,692.3,691.01,0.28943141]
[1736568848926,1.08145292,692.26,691.01,0.28943141]
[1736568849817,1.08145292,692.25,691.01,0.28943141]
[1736568852322,1.08145292,692.24,691.01,0.28943141]
[1736568853430,0.28882534,692.46,691.01,0.28943141]
[1736568853431,1.08145292,692.25,691.01,0.28943141]
[1736568854433,1.08145292,692.24,691.01,0.28943141]
[1736568855335,1.08145292,692.16,691.01,0.28943141]
[1736568856337,1.08145292,692.36,691.01,0.28943141]
[1736568858339,1.08145292,692.45,691.01,0.28943141]
[1736568859337,0.28882534,692.46,691.01,0.28943141]
[1736568864348,1.37027826,692.46,691.01,0.28943141]
[1736568865145,0.28882534,692.46,691.01,0.28943141]
[1736568865946,1.08145292,692.45,691.01,0.28943141]
[1736568867651,1.08145292,692.42,691.01,0.28943141]
[1736568868443,1.08145292,692.41,691.01,0.28943141]
[1736568869551,1.08145292,692.36,691.01,0.28943141]
[1736568871348,1.08145292,692.4,691.01,0.28943141]
[1736568872254,1.08145292,692.37,691.01,0.28943141]
[1736568875154,1.08145292,692.35,691.01,0.28943141]
[1736568879558,1.08145292,692.37,691.01,0.28943141]
[1736568880264,1.08145292,692.28,691.01,0.28943141]
[1736568881358,0.28882534,692.46,691.01,0.28943141]
[1736568881359,1.08145292,692.21,691.01,0.28943141]
[1736568882263,1.08145292,692.22,691.01,0.28943141]
[1736568882964,1.08145292,692.23,691.01,0.28943141]
[1736568883762,1.08145292,692.24,691.01,0.28943141]
[1736568884763,1.08145292,692.26,691.01,0.28943141]
[1736568885978,1.08145292,692.25,691.01,0.28943141]